bitfinex/quotes_ETHUSD_20230113
["timestamp","ask_amount","ask_price","bid_price","bid_amount"]
[1673650972910,0.03898028,1455.2,1455.0,3.066]
[1673650973124,0.03898028,1455.2,1455.0,3.0]
[1673650974811,0.03898028,1455.2,1455.0,16.7457]
[1673650975138,0.03898028,1455.2,1455.1,0.08523148]
[1673650975350,0.03898028,1455.2,1455.0,12.56229937]
[1673650975566,0.03898028,1455.2,1455.0,12.55985917]
[1673650975879,13.78302028,1455.2,1455.0,3.0635598]
[1673650976050,6.97688028,1455.2,1454.9,0.066]
[1673650976244,6.97688028,1455.2,1455.0,0.08523828]
[1673650976454,0.69768803,1455.1,1454.9,1.01987562]
[1673650977081,7.57010803,1455.1,1454.9,1.01987562]
[1673650977242,7.63610803,1455.1,1454.9,4.01987562]
[1673650977458,0.76368803,1455.1,1454.9,4.01987562]
[1673650977651,0.69768803,1455.1,1455.0,0.08523864]
[1673650977872,0.69768803,1455.1,1455.0,0.0852371]
[1673650978049,0.10498028,1455.2,1455.1,6.87237]
[1673650978050,0.03898028,1455.2,1455.1,6.87237]
[1673650978260,0.03898028,1455.2,1455.1,9.93837]
[1673650978474,0.03898028,1455.2,1455.1,23.76834297]
[1673650979749,0.03898028,1455.2,1455.1,10.02360297]
[1673650979964,0.03898028,1455.2,1455.1,3.15123297]
[1673650980141,14.80478028,1455.2,1455.1,3.0]
[1673650980353,10.17523663,1455.2,1455.0,3.066]
[1673650980555,8.67523663,1455.2,1454.9,3.066]
[1673650980908,8.67523663,1455.2,1455.1,3.0]
[1673650981246,8.67523663,1455.2,1455.0,0.066]
[1673650981402,15.54713663,1455.2,1454.8,10.95963562]
[1673650981607,0.066,1455.2,1454.9,0.08524264]
[1673650981942,0.08700319,1455.3,1455.0,13.7457]
[1673650982293,0.08700319,1455.3,1455.1,3.0]
[1673650982503,0.08700319,1455.3,1455.1,23.61698]
[1673650982714,0.08700319,1455.3,1455.1,23.68298]
[1673650983024,0.08700319,1455.3,1455.1,26.84055056]
[1673650983634,0.08700319,1455.3,1455.1,19.96818056]
[1673650983846,0.08700319,1455.3,1455.1,19.96434621]
[1673650985077,0.08700319,1455.3,1455.1,20.98422183]
[1673650985340,0.08700319,1455.3,1455.2,20.70092571]
[1673650985552,0.08700319,1455.3,1455.2,26.01847669]
[1673650985763,0.0396175,1455.3,1455.2,30.54832473]
[1673650985916,0.0396175,1455.3,1455.2,27.7600088]
[1673650986127,0.0396175,1455.3,1455.2,3.79673987]
[1673650986377,0.0396175,1455.3,1455.2,3.08522571]
[1673650987002,0.0396175,1455.3,1455.2,0.08522571]
[1673650987962,0.02621239,1455.3,1455.2,0.08522571]
[1673650988189,0.12621239,1455.3,1455.2,0.08522571]
[1673650989014,0.12621239,1455.3,1455.2,0.49573584]
[1673650990972,0.12621239,1455.3,1455.2,21.11143584]
[1673650991215,0.12621239,1455.3,1455.2,24.17743584]
[1673650991846,0.12621239,1455.3,1455.2,28.63114155]
[1673650992288,0.12621239,1455.3,1455.2,20.73936593]
[1673650992514,0.12621239,1455.3,1455.2,13.86746593]
[1673650992679,0.12621239,1455.3,1455.2,20.73936593]
[1673650992891,0.12621239,1455.3,1455.2,13.86746593]
[1673650993102,0.12621239,1455.3,1455.2,20.73936593]
[1673650993310,0.12621239,1455.3,1455.2,27.61126593]
[1673650993656,0.12621239,1455.3,1455.2,20.73936593]
[1673650993988,0.12621239,1455.3,1455.2,27.61126593]
[1673650994470,0.12621239,1455.3,1455.2,28.63114155]
[1673650994681,0.12621239,1455.3,1455.2,32.16098959]
[1673650994885,0.09004291,1455.4,1455.3,0.09721534]
[1673650995147,0.09004291,1455.4,1455.3,28.25596399]
[1673650995307,0.09004291,1455.4,1455.3,28.96747815]
[1673650995667,0.09004291,1455.4,1455.3,24.50824521]
[1673650995906,0.09004291,1455.4,1455.3,27.29656114]
[1673650996252,0.09004291,1455.4,1455.3,20.42513114]
[1673650996612,0.09004291,1455.4,1455.3,16.99130105]
[1673650996828,0.09004291,1455.4,1455.3,19.56358542]
[1673650997230,1.11204291,1455.4,1455.3,0.16321534]
[1673650997407,21.72492291,1455.4,1455.3,0.09721534]
[1673650997614,14.91996291,1455.4,1455.3,0.09721534]
[1673650997827,17.10805749,1455.4,1455.3,0.09721534]
[1673650998282,9.69593403,1455.4,1455.3,0.09721534]
[1673650998496,26.87168412,1455.4,1455.3,0.09721534]
[1673650998826,22.54188758,1455.4,1455.3,0.09721534]
[1673650999048,10.23709749,1455.4,1455.3,0.09721534]
[1673650999194,3.36613749,1455.4,1455.3,0.09721534]
[1673650999405,1.11204291,1455.4,1455.3,0.09721534]
[1673650999709,0.09004291,1455.4,1455.3,0.09721534]
[1673651000047,0.09004291,1455.4,1455.3,3.53104543]
[1673651000268,0.09004291,1455.4,1455.3,20.27390543]
[1673651000576,0.09004291,1455.4,1455.3,20.95942372]
[1673651000784,0.09004291,1455.4,1455.3,17.07108709]
[1673651000996,0.09004291,1455.4,1455.3,9.5801388]
[1673651001206,0.09004291,1455.4,1455.3,6.59704543]
[1673651001974,0.09004291,1455.4,1455.3,3.16321534]
[1673651002198,0.09004291,1455.4,1455.3,3.09721534]
[1673651002569,0.08004291,1455.4,1455.3,10.23395416]
[1673651002794,0.08004291,1455.4,1455.3,19.07458197]
[1673651003927,2.91e-06,1455.4,1455.3,29.37984206]
[1673651004177,2.91e-06,1455.4,1455.3,31.24015595]
[1673651004711,0.10068311,1455.6,1455.3,38.80192307]
[1673651004870,3.11e-06,1455.6,1455.5,33.47975982]
[1673651005075,3.11e-06,1455.6,1455.5,38.67260981]
[1673651005339,3.11e-06,1455.6,1455.5,41.34330388]
[1673651005514,3.11e-06,1455.6,1455.5,40.31689346]
[1673651005861,0.09004291,1455.7,1455.6,0.00199689]
[1673651006078,0.09004291,1455.7,1455.6,21.97935223]
[1673651006295,0.10639194,1455.8,1455.7,2.0]
[1673651006606,8.6e-07,1455.9,1455.8,2.0]
[1673651006796,1.94e-06,1456.0,1455.9,22.6058]
[1673651006971,8.6e-07,1456.1,1455.9,28.93412576]
[1673651007183,0.906064,1456.3,1456.1,2.0]
[1673651007393,0.906064,1456.3,1456.2,31.16507454]
[1673651007602,0.906064,1456.3,1456.2,34.48013697]
[1673651007883,0.066,1456.7,1456.3,2.0]
[1673651008178,1.01589545,1456.9,1456.4,30.89843009]
[1673651008365,2.61210658,1457.0,1456.6,13.7304]
[1673651008589,2.0,1456.9,1456.7,3.0]
[1673651008755,18.17299727,1456.9,1456.5,0.066]
[1673651008961,18.17299727,1456.9,1456.3,3.066]
[1673651008962,13.72966,1456.7,1456.3,3.066]
[1673651009176,14.81155545,1456.7,1456.2,3.066]
[1673651009431,14.81155545,1456.7,1456.2,3.0]
[1673651009639,14.81155545,1456.7,1456.1,0.066]
[1673651009640,10.34662555,1456.6,1456.1,3.066]
[1673651009856,10.41262555,1456.6,1456.1,9.86752]
[1673651010018,3.54715555,1456.6,1456.1,16.80118]
[1673651010228,2.0,1456.6,1456.1,16.80118]
[1673651010470,8.8653,1456.6,1456.1,3.066]
[1673651010680,8.8653,1456.6,1456.1,3.0]
[1673651010681,15.79669,1456.6,1456.1,3.0]
[1673651010892,6.86633,1456.4,1456.1,3.0]
[1673651011114,6.93224,1456.4,1456.0,0.066]
[1673651011436,13.79848,1456.4,1455.8,6.86905]
[1673651011602,0.066,1456.4,1455.9,6.86848]
[1673651011810,5.01349909,1456.5,1456.0,4.12067809]
[1673651011811,0.066,1456.5,1456.0,4.12067809]
[1673651012150,15.92065,1456.6,1456.0,17.85667809]
[1673651012368,9.0551,1456.6,1456.1,3.43383009]
[1673651012596,9.0551,1456.6,1456.3,6.86662]
[1673651012808,9.0551,1456.6,1456.4,9.86611]
[1673651012809,0.066,1456.6,1456.4,9.86611]
[1673651012982,0.066,1456.7,1456.4,9.93211]
[1673651013330,9.69775518,1456.8,1456.4,9.93192]
[1673651013331,0.066,1456.8,1456.4,9.93192]
[1673651013500,32.3158,1456.9,1456.5,3.43383009]
[1673651013709,32.3158,1456.9,1456.6,3.0]
[1673651013710,23.3267,1456.9,1456.6,3.0]
[1673651013928,13.72872,1456.8,1456.6,3.0]
[1673651014140,13.72872,1456.8,1456.5,0.066]
[1673651014141,3.43383009,1456.7,1456.5,0.066]
[1673651014373,1.372872,1456.7,1456.3,6.86641]
[1673651014542,1.372872,1456.7,1456.4,3.0]
[1673651014543,2.0,1456.7,1456.4,3.0]
[1673651014755,15.72977,1456.7,1456.4,3.0]
[1673651014970,15.72977,1456.7,1456.0,0.686848]
[1673651014971,15.79577,1456.7,1456.2,0.066]
[1673651015283,2.066,1456.7,1456.0,9.93401]
[1673651015494,2.0,1456.7,1456.1,11.29453109]
[1673651015734,2.0,1456.7,1456.3,6.86648]
[1673651015943,2.0,1456.7,1456.4,3.0]
[1673651016180,15.72985,1456.7,1456.4,3.0]
[1673651016340,15.79585,1456.7,1456.2,0.066]
[1673651016551,15.79585,1456.7,1456.1,3.066]
[1673651016552,5.01341509,1456.6,1456.1,3.066]
[1673651016758,24.03141009,1456.5,1455.9,0.066]
[1673651016987,45.39831009,1456.5,1455.8,6.93494]
[1673651017236,45.39831009,1456.5,1455.9,6.86836]
[1673651017237,38.53245009,1456.5,1455.9,6.86836]
[1673651017395,38.53245009,1456.5,1455.9,0.066]
[1673651017605,38.53245009,1456.5,1455.8,13.80358]
[1673651017606,12.71971501,1456.4,1455.8,13.80358]
[1673651017820,12.78571501,1456.4,1455.8,13.80358]
[1673651018036,3.91924501,1456.4,1455.9,3.43383009]
[1673651018244,3.85324501,1456.4,1455.9,17.17062009]
[1673651018463,5.85324501,1456.4,1455.9,17.23662009]
[1673651018712,5.91924501,1456.4,1456.0,3.0]
[1673651018856,0.5853245,1456.3,1456.0,3.0]
[1673651019060,0.5853245,1456.3,1456.0,9.86808]
[1673651019309,0.066,1456.4,1456.0,16.80221]
[1673651019498,21.3669,1456.5,1456.0,16.80221]
[1673651019919,28.23284,1456.5,1456.0,27.10417009]
[1673651020163,28.23284,1456.5,1456.0,20.23604009]
[1673651020338,21.3669,1456.5,1456.0,27.10417009]
[1673651020554,21.3669,1456.5,1456.1,9.57792701]
[1673651020746,21.3669,1456.5,1456.2,3.0]
[1673651020747,28.23269,1456.5,1456.2,3.0]
[1673651021594,6.93179,1456.5,1456.2,3.0]
[1673651022217,0.066,1456.5,1456.2,9.86709]
[1673651022437,29.89832,1456.6,1456.2,3.066]
[1673651022641,34.976912,1456.6,1456.2,3.0]
[1673651023161,28.111202,1456.6,1456.2,9.86715]
[1673651023393,28.111202,1456.6,1456.2,9.93315]
[1673651023807,34.976662,1456.6,1456.2,3.066]
[1673651024019,2.8111202,1456.5,1456.2,3.0]
[1673651024249,11.6771402,1456.5,1456.2,3.0]
[1673651024427,11.7431402,1456.5,1456.2,3.0]
[1673651024889,2.8771202,1456.5,1456.2,3.0]
[1673651025212,9.6769202,1456.5,1456.2,3.0]
[1673651025425,2.96769202,1456.4,1456.2,3.0]
[1673651025579,20.60013,1456.3,1456.0,0.066]
[1673651025789,20.66613,1456.3,1455.8,6.86898]
[1673651026022,20.66613,1456.3,1455.8,13.80396]
[1673651026214,20.66413,1456.3,1455.8,13.80396]
[1673651026468,4.066413,1456.2,1455.8,13.80396]
[1673651026685,10.933633,1456.2,1455.8,13.80396]
[1673651027007,10.999633,1456.2,1455.8,13.80396]
[1673651027177,10.999633,1456.2,1455.9,3.0]
[1673651027407,15.866853,1456.2,1455.9,3.0]
[1673651027639,8.999633,1456.2,1455.9,3.0]
[1673651027799,2.132413,1456.2,1455.9,9.86851]
[1673651028013,2.066413,1456.2,1455.9,9.93451]
[1673651028783,6.86728,1456.2,1455.9,3.066]
[1673651028994,0.066,1456.2,1455.9,9.86848]
[1673651029204,8.4524,1456.3,1455.9,16.80311]
[1673651029532,8.4524,1456.3,1456.0,8.548211]
[1673651029743,8.4524,1456.3,1456.1,9.86759]
[1673651029911,8.4524,1456.3,1456.1,9.93359]
[1673651030585,0.066,1456.3,1456.1,3.066]
[1673651030786,27.08127,1456.4,1456.1,3.0]
[1673651030999,31.44371802,1456.4,1456.1,3.0]
[1673651031314,11.29471802,1456.4,1456.1,3.0]
[1673651031846,0.066,1456.4,1456.1,9.86763]
[1673651032006,6.86625,1456.4,1456.1,3.066]
[1673651032215,13.7985,1456.4,1456.1,3.0]
[1673651032424,20.66475,1456.4,1456.1,3.0]
[1673651032638,2.0,1456.3,1456.0,3.066]
[1673651032844,4.066475,1456.3,1455.9,3.066]
[1673651033104,4.066475,1456.3,1455.7,26.53636]
[1673651033105,6.86728,1456.2,1455.8,9.93506]
[1673651033282,6.93328,1456.2,1455.8,9.93506]
[1673651033491,0.066,1456.2,1455.8,20.23796009]
[1673651033853,2.543,1456.4,1455.9,3.43383009]
[1673651034020,2.543,1456.4,1456.0,23.94722301]
[1673651034388,2.543,1456.4,1456.0,10.27727301]
[1673651034389,16.27558,1456.4,1456.0,10.27727301]
[1673651034682,2.0,1456.3,1456.0,9.93389]
[1673651035098,2.0,1456.3,1456.0,3.066]
[1673651035099,22.60015,1456.3,1456.0,3.066]
[1673651035415,13.935,1456.2,1455.8,3.066]
[1673651035574,13.935,1456.2,1455.8,9.87390554]
[1673651035575,6.93135,1456.2,1455.8,9.87390554]
[1673651035785,6.93335,1456.2,1455.8,16.80697554]
[1673651036045,6.93335,1456.2,1455.8,9.93790554]
[1673651036428,6.93335,1456.2,1456.0,20.60439]
[1673651036429,0.066,1456.2,1456.0,20.60439]
[1673651036781,13.73285,1456.4,1456.1,3.0]
[1673651037001,0.066,1456.4,1456.1,3.0]
[1673651037348,8.93179,1456.5,1456.1,9.86752]
[1673651037521,6.855841,1456.5,1456.1,16.80118]
[1673651037889,6.855841,1456.5,1456.1,23.66884]
[1673651038363,0.066,1456.5,1456.1,23.66884]
[1673651038545,29.715,1456.6,1456.1,27.10267009]
[1673651039725,29.715,1456.6,1456.2,0.37287348]
[1673651039902,29.715,1456.6,1456.2,14.10684348]
[1673651040097,29.715,1456.6,1456.3,3.0]
[1673651040538,29.715,1456.6,1456.3,9.86666]
[1673651040759,20.4604,1456.6,1456.3,12.299323]
[1673651041403,20.4604,1456.6,1456.3,19.166033]
[1673651042359,0.066,1456.6,1456.3,29.46657309]
[1673651042522,11.12200658,1456.8,1456.3,30.38054232]
[1673651042523,21.32089545,1456.8,1456.3,30.38054232]
[1673651042733,20.305,1456.8,1456.5,13.73134]
[1673651043045,20.305,1456.8,1456.6,3.0]
[1673651043475,0.066,1456.8,1456.6,3.0]
[1673651043683,2.27208003,1456.8,1456.6,3.0]
[1673651044337,1.59621113,1456.9,1456.7,13.72966]
[1673651044338,1.08189545,1456.9,1456.7,13.72966]
[1673651044559,1.01589545,1456.9,1456.8,16.72872]
[1673651044718,2.25686119,1456.9,1456.8,16.79472]
[1673651044932,1.01589545,1456.9,1456.8,16.79472]
[1673651045350,21.32089545,1457.0,1456.8,16.79472]
[1673651045555,21.32089545,1457.0,1456.8,9.93036]
[1673651045813,1.08189545,1457.0,1456.8,9.93036]
[1673651046020,1.01589545,1457.0,1456.8,26.025017]
[1673651046231,2.66518962,1457.1,1456.8,26.025017]
[1673651046412,2.66518962,1457.1,1456.8,19.160657]
[1673651046623,2.66518962,1457.1,1456.8,12.296297]
[1673651046850,5.48265585,1457.1,1456.8,12.296297]
[1673651047060,6.30834948,1457.1,1456.8,3.066]
[1673651047235,2.25607397,1457.0,1456.8,3.0]
[1673651047445,13.72684,1457.0,1456.8,3.0]
[1673651047657,16.48265295,1457.0,1456.6,3.066]
[1673651047900,16.48265295,1457.0,1456.6,3.0]
[1673651047901,17.4985484,1457.0,1456.6,3.0]
[1673651048132,10.6351184,1457.0,1456.6,9.86525]
[1673651048296,10.6351184,1457.0,1456.6,9.93125]
[1673651048679,10.6351184,1457.0,1456.6,16.79655]
[1673651048971,2.0,1456.9,1456.6,9.93125]
[1673651049338,8.86391,1456.9,1456.6,3.066]
[1673651049550,8.92991,1456.9,1456.6,3.0]
[1673651049760,8.92991,1456.9,1456.5,0.066]
[1673651049761,3.43383009,1456.8,1456.5,0.066]
[1673651050014,20.59518,1456.7,1456.3,0.066]
[1673651050178,4.059518,1456.6,1456.2,1.09128594]
[1673651050394,10.924948,1456.6,1456.3,0.45611633]
[1673651050607,8.990948,1456.6,1456.3,0.45611633]
[1673651051022,0.066,1456.6,1456.3,0.45611633]
[1673651051231,0.066,1456.7,1456.3,17.62333642]
[1673651051438,28.6389,1456.8,1456.4,3.88988353]
[1673651051686,28.6389,1456.8,1456.5,20.98599835]
[1673651051877,28.6389,1456.8,1456.5,7.32065835]
[1673651052073,28.6389,1456.8,1456.6,3.0]
[1673651052281,19.8634,1456.8,1456.6,3.0]
[1673651052805,0.066,1456.8,1456.6,3.0]
[1673651053068,2.0,1456.7,1456.4,3.07141306]
[1673651053230,8.86501,1456.7,1456.4,3.00541306]
[1673651053440,8.93101,1456.7,1456.4,3.00541306]
[1673651055279,11.4662918,1456.7,1456.4,3.0]
[1673651055890,18.3313018,1456.7,1456.4,3.0]
[1673651056531,18.3313018,1456.7,1456.3,9.93265]
[1673651056532,11.4662918,1456.7,1456.3,9.93265]
[1673651056753,18.8283995,1456.7,1456.3,3.066]
[1673651056905,18.8283995,1456.7,1456.3,3.0]
[1673651057580,25.6934095,1456.7,1456.3,3.0]
[1673651057787,1.88283995,1456.6,1456.3,3.0]
[1673651058010,13.73154,1456.5,1456.3,3.0]
[1673651058321,13.73154,1456.5,1456.2,10.07691254]
[1673651058322,24.09714009,1456.5,1456.2,0.066]
[1673651058481,6.86671,1456.3,1456.0,1.09128594]
[1673651058691,0.066,1456.3,1456.1,0.45584245]
[1673651058950,8.86675,1456.3,1456.0,1.02528594]
[1673651059171,2.066,1456.3,1455.9,3.01903269]
[1673651059323,2.066,1456.3,1456.0,0.45587792]
[1673651059324,8.86672,1456.3,1456.0,0.45587792]
[1673651059533,15.79944,1456.3,1456.0,0.45587792]
[1673651060043,15.79944,1456.3,1455.8,3.60681066]
[1673651060164,15.79944,1456.3,1455.9,1.84191294]
[1673651060165,0.066,1456.3,1455.9,1.84191294]
[1673651060525,9.27611401,1456.4,1456.0,0.45594593]
[1673651060526,9.34210401,1456.4,1456.0,0.45594593]
[1673651060689,8.86673,1456.3,1456.0,0.45594593]
[1673651060903,22.66619,1456.3,1456.0,0.45594593]
[1673651061245,22.66619,1456.3,1455.9,1.02528594]
[1673651061421,22.66619,1456.3,1455.9,1.48132676]
[1673651061422,20.60298,1456.1,1455.9,1.48132676]
[1673651061632,20.66898,1456.1,1455.9,1.02528594]
[1673651061890,20.66898,1456.1,1455.8,2.56318685]
[1673651062057,20.66898,1456.1,1455.8,3.01919286]
[1673651062261,22.9625399,1456.1,1455.8,3.01919286]
[1673651062693,22.9625399,1456.1,1455.9,3.0]
[1673651063158,22.9625399,1456.1,1455.8,4.09128594]
[1673651063310,22.9625399,1456.1,1455.8,3.0]
[1673651063521,2.29625399,1456.0,1455.9,0.45599256]
[1673651063740,6.86813,1456.0,1455.9,3.0]
[1673651064004,6.93413,1456.0,1455.8,3.066]
[1673651064309,6.93413,1456.0,1455.8,4.02528594]
[1673651064310,20.67039,1456.0,1455.8,4.02528594]
[1673651064468,24.110961,1456.0,1455.8,3.0]
[1673651064677,27.54479109,1456.0,1455.8,3.0]
[1673651064887,27.54479109,1456.0,1455.7,0.066]
[1673651064888,2.0,1455.9,1455.7,0.066]
[1673651065103,1.222,1455.8,1455.6,1.11635273]
[1673651065310,1.022,1455.8,1455.6,2.65425364]
[1673651065553,6.8688,1455.9,1455.6,2.65425364]
[1673651065554,0.066,1455.9,1455.7,0.45608264]
[1673651065776,6.86814,1456.0,1455.7,1.48136858]
[1673651065947,6.93414,1456.0,1455.7,1.48136858]
[1673651066174,6.93414,1456.0,1455.7,4.48136858]
[1673651066362,6.93414,1456.0,1455.8,0.45608264]
[1673651067047,6.93413,1456.0,1455.8,0.45608264]
[1673651067617,30.91213,1456.3,1456.0,2.65965342]
[1673651067618,21.4854,1456.3,1456.0,2.65965342]
[1673651067789,21.5514,1456.3,1456.1,13.73532]
[1673651067954,0.066,1456.3,1456.2,3.0]
[1673651068151,0.066,1456.5,1456.2,3.0]
[1673651068363,13.79715,1456.6,1456.2,3.0]
[1673651068581,18.005993,1456.6,1456.2,3.0]
[1673651068835,21.43982309,1456.6,1456.2,3.0]
[1673651069569,0.066,1456.6,1456.2,3.0]
[1673651069729,21.4264,1456.7,1456.3,7.31956939]
[1673651069730,21.4924,1456.7,1456.3,7.31956939]
[1673651070057,21.4924,1456.7,1456.4,3.0]
[1673651070275,21.4924,1456.7,1456.4,9.86592]
[1673651070614,0.566,1456.7,1456.4,3.066]
[1673651070781,2.5,1456.7,1456.4,3.0]
[1673651070991,9.36484,1456.7,1456.4,3.0]
[1673651071201,9.36484,1456.7,1456.3,3.066]
[1673651071202,18.80313,1456.7,1456.3,3.066]
[1673651071459,29.10180009,1456.7,1456.1,4.09128594]
[1673651071620,2.91018001,1456.6,1456.2,0.45305831]
[1673651071835,6.86586,1456.5,1456.2,0.45305831]
[1673651072069,6.93186,1456.5,1456.1,5.07476231]
[1673651072365,6.93186,1456.5,1456.2,0.4530665]
[1673651072623,7.65486083,1456.5,1456.2,0.4530665]
[1673651072771,7.65486083,1456.5,1456.1,4.04947637]
[1673651072982,6.93186,1456.5,1456.1,5.00876231]
[1673651073239,0.066,1456.5,1456.1,18.81004231]
[1673651073434,15.37238009,1456.7,1456.2,0.45312997]
[1673651073765,6.86543,1456.6,1456.2,0.45312997]
[1673651073983,0.066,1456.6,1456.2,21.05458997]
[1673651074156,0.566,1456.7,1456.3,5.105459]
[1673651074379,0.5,1456.7,1456.4,20.59851]
[1673651074713,0.5,1456.7,1456.5,3.0]
[1673651075080,7.3649,1456.7,1456.5,3.0]
[1673651075298,0.566,1456.7,1456.4,3.066]
[1673651075619,0.5,1456.7,1456.4,10.73262046]
[1673651075831,0.5,1456.7,1456.4,10.79862046]
[1673651076250,0.5,1456.7,1456.4,17.66486046]
[1673651076462,0.5,1456.7,1456.4,3.93248046]
[1673651076664,7.36506,1456.7,1456.4,3.0]
[1673651076880,9.43106,1456.7,1456.4,3.0]
[1673651077496,0.566,1456.7,1456.4,3.0]
[1673651077709,0.5,1456.7,1456.4,23.59872]
[1673651077973,0.5,1456.7,1456.4,23.66272]
[1673651078136,0.5,1456.7,1456.4,25.51467683]
[1673651079074,0.5,1456.7,1456.4,18.64843683]
[1673651079652,0.5,1456.7,1456.4,11.78219683]
[1673651080687,0.5,1456.7,1456.4,3.066]
[1673651080911,7.36488,1456.7,1456.4,3.0]
[1673651081073,7.43088,1456.7,1456.4,3.0]
[1673651081283,14.29576,1456.7,1456.4,3.0]
[1673651081965,7.43088,1456.7,1456.4,3.0]
[1673651082331,0.566,1456.7,1456.4,9.86624]
[1673651082587,0.5,1456.7,1456.4,9.93224]
[1673651083189,7.36485,1456.7,1456.4,3.066]
[1673651083418,7.36485,1456.7,1456.4,3.0]
[1673651083419,9.546848,1456.7,1456.4,3.0]
[1673651083621,16.411698,1456.7,1456.4,3.0]
[1673651084261,26.71037809,1456.7,1456.3,3.066]
[1673651084442,26.71037809,1456.7,1456.2,3.116]
[1673651084443,27.72627354,1456.7,1456.2,3.116]
[1673651084652,6.86586,1456.5,1456.3,3.0]
[1673651084916,6.93186,1456.5,1456.2,0.116]
[1673651085101,16.34126873,1456.5,1456.2,0.05]
[1673651085650,9.47540873,1456.5,1456.2,0.05]
[1673651086017,9.47340873,1456.5,1456.2,0.05]
[1673651086276,0.066,1456.5,1456.2,22.13003266]
[1673651086585,18.96591,1456.7,1456.3,17.18640672]
[1673651086898,0.5,1456.5,1456.3,9.93244]
[1673651087109,0.5,1456.5,1456.3,3.066]
[1673651087339,14.2316,1456.5,1456.3,3.0]
[1673651087636,15.92076,1456.5,1456.2,4.14128594]
[1673651087797,22.78656,1456.5,1456.3,0.45317766]
[1673651088016,22.78656,1456.5,1456.2,3.05]
[1673651088228,9.144896,1456.4,1456.3,3.0]
[1673651088427,9.144896,1456.4,1456.2,0.05]
[1673651088428,9.210896,1456.4,1456.2,0.116]
[1673651088638,0.066,1456.4,1456.2,0.05]
[1673651088895,9.05496,1456.5,1456.4,0.00208254]
[1673651089059,9.00496,1456.5,1456.4,0.00208254]
[1673651089750,15.87107,1456.5,1456.4,0.00208254]
[1673651089902,9.00496,1456.5,1456.4,0.00208254]
[1673651090114,15.87107,1456.5,1456.4,0.00208254]
[1673651090760,9.00496,1456.5,1456.4,0.00208254]
[1673651091296,0.516,1456.5,1456.4,0.00208254]
[1673651091501,0.45,1456.5,1456.4,0.00208254]
[1673651091740,7.31577,1456.5,1456.4,0.00208254]
[1673651091901,7.38177,1456.5,1456.4,0.00208254]
[1673651092673,16.24754,1456.5,1456.4,0.00208254]
[1673651092880,27.695437,1456.5,1456.4,0.00208254]
[1673651093369,27.695437,1456.5,1456.2,3.05]
[1673651093370,0.49791746,1456.4,1456.2,3.05]
[1673651093572,2.49791746,1456.4,1456.3,3.0]
[1673651093839,21.09776746,1456.4,1456.3,3.0]
[1673651094042,24.66993391,1456.4,1456.2,0.116]
[1673651094238,24.66993391,1456.4,1456.2,0.05]
[1673651096413,24.03396009,1456.3,1456.2,0.05]
[1673651096629,24.09996009,1456.3,1456.2,0.05]
[1673651097291,26.09996009,1456.3,1456.2,0.05]
[1673651097502,30.91449248,1456.3,1456.2,0.05]
[1673651097713,32.15888425,1456.3,1456.2,0.05]
[1673651099318,33.72790175,1456.3,1456.2,0.05]
[1673651100422,35.25811288,1456.3,1456.2,0.05]
[1673651101257,33.72790175,1456.3,1456.2,0.05]
[1673651101891,31.72790175,1456.3,1456.2,0.05]
[1673651102148,15.18107248,1456.3,1456.2,0.05]
[1673651102463,0.066,1456.3,1456.2,0.05]
[1673651102675,9.32289546,1456.4,1456.2,0.05]
[1673651102847,23.05542546,1456.4,1456.2,0.05]
[1673651104258,29.92166546,1456.4,1456.2,0.05]
[1673651104576,4.99216655,1456.3,1456.2,0.05]
[1673651104886,25.59229655,1456.3,1456.2,0.05]
[1673651105041,25.65829655,1456.3,1456.2,0.05]
[1673651105466,26.674192,1456.3,1456.2,0.05]
[1673651105827,27.91870068,1456.3,1456.2,0.05]
[1673651106358,25.65829655,1456.3,1456.2,0.05]
[1673651106726,34.4522511,1456.3,1456.2,0.05]
[1673651107164,33.43635565,1456.3,1456.2,0.05]
[1673651108317,34.46238471,1456.3,1456.2,0.05]
[1673651108540,32.93217358,1456.3,1456.2,0.05]
[1673651108808,34.46238471,1456.3,1456.2,0.05]
[1673651109248,32.93217358,1456.3,1456.2,0.05]
[1673651109458,30.93217358,1456.3,1456.2,0.05]
[1673651109786,29.36241,1456.3,1456.2,0.05]
[1673651110369,28.1181557,1456.3,1456.2,0.05]
[1673651110719,27.09212664,1456.3,1456.2,0.05]
[1673651111288,23.65829655,1456.3,1456.2,0.05]
[1673651112447,25.65829655,1456.3,1456.2,0.05]
[1673651113038,27.92677849,1456.3,1456.2,0.05]
[1673651113390,0.05,1456.2,1456.0,2.65965342]
[1673651113571,30.90447009,1456.1,1456.0,2.65965342]
[1673651113914,30.97047009,1456.1,1456.0,2.65965342]
[1673651115593,24.10281009,1456.1,1456.0,2.65965342]
[1673651115769,0.066,1456.1,1456.0,2.65965342]
[1673651115982,6.8675,1456.2,1456.0,2.65965342]
[1673651116185,24.10218009,1456.2,1456.0,2.65965342]
[1673651116601,20.04663722,1456.2,1456.0,2.65965342]
[1673651117022,6.31178722,1456.2,1456.0,2.65965342]
[1673651117237,24.10163009,1456.2,1456.0,2.65965342]
[1673651118174,30.96907009,1456.2,1456.0,2.65965342]
[1673651118388,2.0,1456.1,1456.0,2.65965342]
[1673651118599,2.0,1456.1,1456.0,5.65965342]
[1673651118600,22.60298,1456.1,1456.0,5.65965342]
[1673651118809,22.60298,1456.1,1456.0,5.72565342]
[1673651118810,22.66898,1456.1,1456.0,5.72565342]
[1673651119033,10.23065901,1456.1,1456.0,5.72565342]
[1673651119248,3.36299901,1456.1,1456.0,5.72565342]
[1673651119470,10.30118009,1456.2,1456.0,5.72565342]
[1673651119471,24.10224009,1456.2,1456.0,5.72565342]